OrganisationURI,OrganisationLabel,OrganisationalUnit,TransactionNumber,Invoice Ref.,BeneficiaryName,Expense Type,Purpose,PaymentDate,Amount,
http://statistics.data.gov.uk/id/local-authority-district/23UB,Cheltenham Borough Council,Fire Protection,14039005,175201,A & E Fire Equipment Limited,C1107-CAH015,Building Works,16/10/2015,749.68,
http://statistics.data.gov.uk/id/local-authority-district/23UB,Cheltenham Borough Council,Fire Protection,14038317,176233,A & E Fire Equipment Limited,C1107-CAH015,Building Works,16/10/2015,670.00,
http://statistics.data.gov.uk/id/local-authority-district/23UB,Cheltenham Borough Council,Fire Protection,14038316,176234,A & E Fire Equipment Limited,C1107-CAH015,Building Works,16/10/2015,736.00,
http://statistics.data.gov.uk/id/local-authority-district/23UB,Cheltenham Borough Council,Fire Protection,14039726,177347,A & E Fire Equipment Limited,C1107-CAH015,Building Works,16/10/2015,6460.22,
http://statistics.data.gov.uk/id/local-authority-district/23UB,Cheltenham Borough Council,Repairs and Maintenance,14039798,177445,A & E Fire Equipment Limited,R2042-HRA100,R & M of Build Fire Systems,02/10/2015,1042.39,
http://statistics.data.gov.uk/id/local-authority-district/23UB,Cheltenham Borough Council,Town Hall Repairs & Maintenance,14040028,177813,A & E Fire Equipment Limited,R2083-CUL112,R&M of Build - Routine,02/10/2015,701.62,
http://statistics.data.gov.uk/id/local-authority-district/23UB,Cheltenham Borough Council,Fire Protection,14039732,178040,A & E Fire Equipment Limited,C1107-CAH015,Building Works,16/10/2015,2587.09,
http://statistics.data.gov.uk/id/local-authority-district/23UB,Cheltenham Borough Council,Individual Electoral Registration,14039963,28445,Alpha Response Print & Mail Limited,R4300-ELE010,Printing - Services,02/10/2015,2181.00,
http://statistics.data.gov.uk/id/local-authority-district/23UB,Cheltenham Borough Council,Individual Electoral Registration,14040338,28482,Alpha Response Print & Mail Limited,R4300-ELE010,Printing - Services,23/10/2015,760.69,
http://statistics.data.gov.uk/id/local-authority-district/23UB,Cheltenham Borough Council,Tenant Insurance Control,14040237,Premium Declaration June-September 2015,AON Limited - Tenant Insurance,R9925-HRA901,Tenant Insurance Scheme Payments,16/10/2015,6942.33,
http://statistics.data.gov.uk/id/local-authority-district/23UB,Cheltenham Borough Council,Development Control - Applications,14040079,11791,Artful Limited,R4317-DEV001,Non Staff Advertising,09/10/2015,3320.72,
http://statistics.data.gov.uk/id/local-authority-district/23UB,Cheltenham Borough Council,Development costs - Garage Sites 2a,14038889,CBHL/2063,Aspects Services (UK) Limited (ASL),C1107-CAH052,Building Works,16/10/2015,3718.75,
http://statistics.data.gov.uk/id/local-authority-district/23UB,Cheltenham Borough Council,Joint Core Strategy,14039806,15020933,Atkins Limited (Transport Planning),R4400-PLP101,Services - Professional Fees,09/10/2015,1368.78,
http://statistics.data.gov.uk/id/local-authority-district/23UB,Cheltenham Borough Council,Joint Core Strategy,14040503,15026410,Atkins Limited (Transport Planning),R4400-PLP101,Services - Professional Fees,30/10/2015,9557.17,
http://statistics.data.gov.uk/id/local-authority-district/23UB,Cheltenham Borough Council,Building Control - Fee Earning Work,14040491,BEG431,B R G Interim Solutions Limited,R1100-BUC001,Agency Staff,23/10/2015,1870.69,
http://statistics.data.gov.uk/id/local-authority-district/23UB,Cheltenham Borough Council,Building Control - Fee Earning Work,14039795,BRG245,B R G Interim Solutions Limited,R1100-BUC001,Agency Staff,02/10/2015,1596.31,
http://statistics.data.gov.uk/id/local-authority-district/23UB,Cheltenham Borough Council,Building Control - Fee Earning Work,14039794,BRG275,B R G Interim Solutions Limited,R1100-BUC001,Agency Staff,02/10/2015,1907.17,
http://statistics.data.gov.uk/id/local-authority-district/23UB,Cheltenham Borough Council,Building Control - Fee Earning Work,14040080,BRG311,B R G Interim Solutions Limited,R1100-BUC001,Agency Staff,09/10/2015,1861.85,
http://statistics.data.gov.uk/id/local-authority-district/23UB,Cheltenham Borough Council,Building Control - Fee Earning Work,14040081,BRG343,B R G Interim Solutions Limited,R1100-BUC001,Agency Staff,09/10/2015,1874.10,
http://statistics.data.gov.uk/id/local-authority-district/23UB,Cheltenham Borough Council,Building Control - Fee Earning Work,14040322,BRG389,B R G Interim Solutions Limited,R1100-BUC001,Agency Staff,16/10/2015,1717.37,
http://statistics.data.gov.uk/id/local-authority-district/23UB,Cheltenham Borough Council,Cheltenham Business Partnership,14040291,150210-029,Blackadder Media Limited,R4411-HLD130,Consultancy Fees,16/10/2015,4290.00,
http://statistics.data.gov.uk/id/local-authority-district/23UB,Cheltenham Borough Council,Joint Core Strategy,14040354,15709,Border Office Supplies and Systems Limited,R4400-PLP101,Services - Professional Fees,23/10/2015,770.01,
http://statistics.data.gov.uk/id/local-authority-district/23UB,Cheltenham Borough Council,External Improvements,14040308,79/17/15800,Briggs Amasco Limited T/A Hyflex,C1107-CAH003,Building Works,23/10/2015,7955.00,
http://statistics.data.gov.uk/id/local-authority-district/23UB,Cheltenham Borough Council,Supervision and Management,14040051,Q008 CP,BT (Business Billing - Durham),R4515-HRA110,Comms - Telephone Call Charges,30/10/2015,1064.64,
http://statistics.data.gov.uk/id/local-authority-district/23UB,Cheltenham Borough Council,Supervision and Management,14039912,Q00B B2,BT (Business Billing - Durham),R4515-HRA110,Comms - Telephone Call Charges,30/10/2015,1020.44,
http://statistics.data.gov.uk/id/local-authority-district/23UB,Cheltenham Borough Council,Built Environment,14040286,11349,Business Furniture Direct Limited,R4308-SUP040,Stationery,16/10/2015,675.00,
http://statistics.data.gov.uk/id/local-authority-district/23UB,Cheltenham Borough Council,Housing Benefit Administration,14040287,11350,Business Furniture Direct Limited,R4308-HBA001,Stationery,16/10/2015,675.00,
http://statistics.data.gov.uk/id/local-authority-district/23UB,Cheltenham Borough Council,External Improvements,14040288,6659,C &  R Decorating and Maintenance Limited,C1107-CAH003,Building Works,23/10/2015,1160.00,
http://statistics.data.gov.uk/id/local-authority-district/23UB,Cheltenham Borough Council,"Cemetery, Crematorium and Churchyards",14040553,4356,C Mawdsley t/a Arbor Tree Care,R2070-CCM001,Tree Work,30/10/2015,570.00,
http://statistics.data.gov.uk/id/local-authority-district/23UB,Cheltenham Borough Council,"Cemetery, Crematorium and Churchyards",14040304,28981,CDK Castings Limited T/A Arkell & Hurcombe,R4011-CCM001,Goods For Resale,16/10/2015,840.00,
http://statistics.data.gov.uk/id/local-authority-district/23UB,Cheltenham Borough Council,Community Alarms,14040361,614938,Celador Radio Limited,R4014-SPP002,Marketing,23/10/2015,637.50,
http://statistics.data.gov.uk/id/local-authority-district/23UB,Cheltenham Borough Council,Community Alarms,14039761,CBCLLINV01,Celador Radio Limited,R4014-SPP002,Marketing,02/10/2015,3105.00,
http://statistics.data.gov.uk/id/local-authority-district/23UB,Cheltenham Borough Council,Public Realm Improvements,14040363,390246,Cheltenham & Gloucester Omnibus Company t/a Stagecoach West,C1100-CAP205,Construction,23/10/2015,10000.00,
http://statistics.data.gov.uk/id/local-authority-district/23UB,Cheltenham Borough Council,Car Parks - Off Street Operations,14040163,121-006336,Chiefield Limited T/A Brown Advertising And Design,R4303-CPK001,Printing - Other Consumables,23/10/2015,2014.50,
http://statistics.data.gov.uk/id/local-authority-district/23UB,Cheltenham Borough Council,Trees,14040478,77,Chris Arnold Tree Surgery,R2070-PLP006,Tree Work,23/10/2015,9000.00,
http://statistics.data.gov.uk/id/local-authority-district/23UB,Cheltenham Borough Council,Property Services,14040092,3111459,CIPFA Business Limited,R1650-SUP025,Training Expenses,09/10/2015,1445.00,
http://statistics.data.gov.uk/id/local-authority-district/23UB,Cheltenham Borough Council,Council Tax Collection,14039796,C/BC137132,Civica UK Limited (Burston Road),R4401-LTC001,Services - Fees and Charges,02/10/2015,1896.00,
http://statistics.data.gov.uk/id/local-authority-district/23UB,Cheltenham Borough Council,Town Hall Repairs & Maintenance,14040345,6295,"Clarke, Nicholls & Marcel Limited (CNM)",R2008-CUL112,R & M of Build - Reactive Repairs,23/10/2015,942.50,
http://statistics.data.gov.uk/id/local-authority-district/23UB,Cheltenham Borough Council,Cheltenham Municipal Offices,14040158,550876,Comensura Limited,R1100-ADB101,Agency Staff,09/10/2015,704.10,
http://statistics.data.gov.uk/id/local-authority-district/23UB,Cheltenham Borough Council,"Cemetery, Crematorium and Churchyards",14040158,550876,Comensura Limited,R1100-CCM001,Agency Staff,09/10/2015,2650.18,
http://statistics.data.gov.uk/id/local-authority-district/23UB,Cheltenham Borough Council,"Cemetery, Crematorium and Churchyards",14040451,551454,Comensura Limited,R1100-CCM001,Agency Staff,30/10/2015,6241.96,
http://statistics.data.gov.uk/id/local-authority-district/23UB,Cheltenham Borough Council,"Cemetery, Crematorium and Churchyards",14040505,551854,Comensura Limited,R1100-CCM001,Agency Staff,30/10/2015,618.16,
http://statistics.data.gov.uk/id/local-authority-district/23UB,Cheltenham Borough Council,SLA Single Advice Contract,14040371,527,County Community Projects (CCP),R6280-GBD103,Grants,23/10/2015,54000.00,
http://statistics.data.gov.uk/id/local-authority-district/23UB,Cheltenham Borough Council,Land & Property presale costs,14039914,CA1061-8,Curtins Consulting Limited,C1005-CAP401,Surveyors Fees,02/10/2015,567.00,
http://statistics.data.gov.uk/id/local-authority-district/23UB,Cheltenham Borough Council,Play areas enhancement,14040033,921,D A Jones Landscapes,C4000-CAP102,Acquisition of Equipment,02/10/2015,1620.00,
http://statistics.data.gov.uk/id/local-authority-district/23UB,Cheltenham Borough Council,Play areas enhancement,14040033,921,D A Jones Landscapes,C4000-CAP102,Acquisition of Equipment,02/10/2015,1820.00,
http://statistics.data.gov.uk/id/local-authority-district/23UB,Cheltenham Borough Council,ICT,14040177,4729/1510,Data Track Technology plc,R4534-SUP005,IT - Maint Agreements,09/10/2015,2810.81,
http://statistics.data.gov.uk/id/local-authority-district/23UB,Cheltenham Borough Council,Joint Core Strategy,14040302,12999,Denwells MIni Coaches Limited,R4400-PLP101,Services - Professional Fees,23/10/2015,705.00,
http://statistics.data.gov.uk/id/local-authority-district/23UB,Cheltenham Borough Council,"Cemetery, Crematorium and Churchyards",14040556,3204,Dr Young & Partners,R4401-CCM001,Services - Fees and Charges,30/10/2015,10120.00,
http://statistics.data.gov.uk/id/local-authority-district/23UB,Cheltenham Borough Council,Car Parks - Off Street Operations,14039813,444491,DTZ DTL Limited,R4400-CPK001,Services - Professional Fees,02/10/2015,12105.37,
http://statistics.data.gov.uk/id/local-authority-district/23UB,Cheltenham Borough Council,Cemetery & Crematorium Repairs & Maintenance,14040370,56I0203204,Eclipse Combustion Limited,R2083-CCM111,R&M of Build - Routine,23/10/2015,798.00,
http://statistics.data.gov.uk/id/local-authority-district/23UB,Cheltenham Borough Council,Recreation Centre Repairs & Maintenance,14040382,301267/9/2015,Ener-G Combined Power (South) Limited,R2100-REC111,Electricity,23/10/2015,2849.11,
http://statistics.data.gov.uk/id/local-authority-district/23UB,Cheltenham Borough Council,Planning Policy,14040384,cbc273-01,Enfusion Limited,R4400-PLP001,Services - Professional Fees,23/10/2015,4250.00,
http://statistics.data.gov.uk/id/local-authority-district/23UB,Cheltenham Borough Council,"Paths, Fences & Walls",14040296,WM006454,English Landscapes Limited t/a The Landscape Group,C1107-CAH021,Building Works,16/10/2015,7572.02,
http://statistics.data.gov.uk/id/local-authority-district/23UB,Cheltenham Borough Council,Environmental Works (Tenant Selection),14040307,WM006455,English Landscapes Limited t/a The Landscape Group,C1107-CAH029,Building Works,23/10/2015,2837.57,
http://statistics.data.gov.uk/id/local-authority-district/23UB,Cheltenham Borough Council,Environmental Works (Tenant Selection),14040306,WM006456,English Landscapes Limited t/a The Landscape Group,C1107-CAH029,Building Works,16/10/2015,554.40,
http://statistics.data.gov.uk/id/local-authority-district/23UB,Cheltenham Borough Council,Neighbourhood works,14040548,WM006460,English Landscapes Limited t/a The Landscape Group,C1107-CAH005,Building Works,30/10/2015,33157.97,
http://statistics.data.gov.uk/id/local-authority-district/23UB,Cheltenham Borough Council,Pest Control,14040185,453191,Facelift (GB) Limited,R4001-REG018,Tools & Equipment - Hire,09/10/2015,1425.00,
http://statistics.data.gov.uk/id/local-authority-district/23UB,Cheltenham Borough Council,Pest Control,14040169,453192,Facelift (GB) Limited,R4001-REG018,Tools & Equipment - Hire,16/10/2015,1000.00,
http://statistics.data.gov.uk/id/local-authority-district/23UB,Cheltenham Borough Council,Land Charges,14039903,1800369787,Gloucestershire County Council,R4400-BUC004,Services - Professional Fees,02/10/2015,11115.23,
http://statistics.data.gov.uk/id/local-authority-district/23UB,Cheltenham Borough Council,Household Waste,14040379,1800375232,Gloucestershire County Council,R4400-WST001,Services - Professional Fees,30/10/2015,7109.02,
http://statistics.data.gov.uk/id/local-authority-district/23UB,Cheltenham Borough Council,Pensions Backfunding,14040097,800005991,GLOUCESTERSHIRE COUNTY COUNCIL (LGPS ONLY),R1301-SUP038,Enhanced Pension,09/10/2015,16821.24,
http://statistics.data.gov.uk/id/local-authority-district/23UB,Cheltenham Borough Council,Supervision and Management,14040067,4863,Gooch Group Limited (Cleaning not Products),R2700-HRA110,Contract Cleaning,09/10/2015,600.23,
http://statistics.data.gov.uk/id/local-authority-district/23UB,Cheltenham Borough Council,Corporate Management,14040107,8427123,Grant Thornton UK LLP,R4430-COR001,Audit Fees,09/10/2015,12351.50,
http://statistics.data.gov.uk/id/local-authority-district/23UB,Cheltenham Borough Council,Supervision and Management,14039818,2727,Greenway Partnership Limited T/A GPL Building Services,R2023-HRA110,R & M of Build Commercial Properties,30/10/2015,1085.00,
http://statistics.data.gov.uk/id/local-authority-district/23UB,Cheltenham Borough Council,Prince of Wales Stadium Repairs & Maintenance,14039788,2844,Greenway Partnership Limited T/A GPL Building Services,R2075-REC112,Grounds Maintenance - Contract,02/10/2015,1164.00,
http://statistics.data.gov.uk/id/local-authority-district/23UB,Cheltenham Borough Council,Prince of Wales Stadium Repairs & Maintenance,14039943,2952,Greenway Partnership Limited T/A GPL Building Services,R2004-REC112,R & M of Build Programmed,02/10/2015,622.52,
http://statistics.data.gov.uk/id/local-authority-district/23UB,Cheltenham Borough Council,Cheltenham Depot,14040429,2971,Greenway Partnership Limited T/A GPL Building Services,R2043-ADB103,R & M of Build Drain Cleaning,23/10/2015,970.00,
http://statistics.data.gov.uk/id/local-authority-district/23UB,Cheltenham Borough Council,Parks & Gardens Operations,14040284,2972,Greenway Partnership Limited T/A GPL Building Services,R2007-OPS001,R & M of Plant Contracts,16/10/2015,3414.96,
http://statistics.data.gov.uk/id/local-authority-district/23UB,Cheltenham Borough Council,Car Parks - Off Street R&M,14040261,2978,Greenway Partnership Limited T/A GPL Building Services,R2004-CPK101,R & M of Build Programmed,16/10/2015,9937.00,
http://statistics.data.gov.uk/id/local-authority-district/23UB,Cheltenham Borough Council,Flood Risk Management,14040182,38721,Halcrow Group Limited,R5001-FRM101,TPP - Major External Contractors,09/10/2015,4960.23,
http://statistics.data.gov.uk/id/local-authority-district/23UB,Cheltenham Borough Council,Abandoned Vehicles,14039955,500,Harry Buckland,R4401-STC011,Services - Fees and Charges,02/10/2015,640.00,
http://statistics.data.gov.uk/id/local-authority-district/23UB,Cheltenham Borough Council,Art Gallery & Museum Repairs & Maintenance,14040108,15176,Hellion Environmental Limited,R2080-CUL117,Mechanical Services,09/10/2015,520.84,
http://statistics.data.gov.uk/id/local-authority-district/23UB,Cheltenham Borough Council,Recreation Centre Repairs & Maintenance,14040122,15190,Hellion Environmental Limited,R2080-REC111,Mechanical Services,09/10/2015,545.63,
http://statistics.data.gov.uk/id/local-authority-district/23UB,Cheltenham Borough Council,Recreation Centre Repairs & Maintenance,14040444,15213,Hellion Environmental Limited,R2008-REC111,R & M of Build - Reactive Repairs,23/10/2015,944.26,
http://statistics.data.gov.uk/id/local-authority-district/23UB,Cheltenham Borough Council,General Fund Balance Sheet,14040234,CISDEDUCT0609-051015,HMRC (CBC - CIS),B6220-BAL100,CIS Deductions Control (reallocated),09/10/2015,4468.85,
http://statistics.data.gov.uk/id/local-authority-district/23UB,Cheltenham Borough Council,"Cemetery, Crematorium and Churchyards",14040343,21887,Hoge 100 Business Systems Limited,R4534-CCM001,IT - Maint Agreements,23/10/2015,3470.16,
http://statistics.data.gov.uk/id/local-authority-district/23UB,Cheltenham Borough Council,Repairs and Maintenance,14040316,150255AA6,Ian Williams Limited,R2060-HRA100,R & M of Build Cyclical Painting Communal Areas,16/10/2015,12083.80,
http://statistics.data.gov.uk/id/local-authority-district/23UB,Cheltenham Borough Council,Building Control - Fee Earning Work,14040197,7006483,Idox Software Limited,R4531-BUC001,IT - Purchase of Software,30/10/2015,668.00,
http://statistics.data.gov.uk/id/local-authority-district/23UB,Cheltenham Borough Council,Licensing,14040197,7006483,Idox Software Limited,R4531-REG002,IT - Purchase of Software,30/10/2015,666.00,
http://statistics.data.gov.uk/id/local-authority-district/23UB,Cheltenham Borough Council,Built Environment,14040197,7006483,Idox Software Limited,R4531-SUP040,IT - Purchase of Software,30/10/2015,666.00,
http://statistics.data.gov.uk/id/local-authority-district/23UB,Cheltenham Borough Council,Sports & Open Spaces Operations,14040477,15/047,J P North (Farmer),R2071-OPS002,Open Spaces and Grassed Areas,23/10/2015,1250.00,
http://statistics.data.gov.uk/id/local-authority-district/23UB,Cheltenham Borough Council,Supervision and Management,14039884,RND300415/comb,John Gillman & Sons (Electrical) Limited (Gillmans Appliance),R4002-HRA110,Tools & Equipment - Lease/Rental,02/10/2015,1990.71,
http://statistics.data.gov.uk/id/local-authority-district/23UB,Cheltenham Borough Council,Supervision and Management,14039885,RND300515/comb,John Gillman & Sons (Electrical) Limited (Gillmans Appliance),R4002-HRA110,Tools & Equipment - Lease/Rental,02/10/2015,1990.71,
http://statistics.data.gov.uk/id/local-authority-district/23UB,Cheltenham Borough Council,Supervision and Management,14039883,RND310815/comb,John Gillman & Sons (Electrical) Limited (Gillmans Appliance),R4001-HRA110,Tools & Equipment - Hire,02/10/2015,1990.71,
http://statistics.data.gov.uk/id/local-authority-district/23UB,Cheltenham Borough Council,Supervision and Management,14040344,RND310915/comb,John Gillman & Sons (Electrical) Limited (Gillmans Appliance),R4002-HRA110,Tools & Equipment - Lease/Rental,30/10/2015,1990.71,
http://statistics.data.gov.uk/id/local-authority-district/23UB,Cheltenham Borough Council,Car Parks - Off Street Operations,14039563,691,John Ryde Commercial,R2200-CPK001,Rent,02/10/2015,8875.00,
http://statistics.data.gov.uk/id/local-authority-district/23UB,Cheltenham Borough Council,Supervision and Management,14039423,EN002-0184008,Jones Lang Lasalle Limited,R4424-HRA110,Hire of Outside Services,02/10/2015,6300.00,
http://statistics.data.gov.uk/id/local-authority-district/23UB,Cheltenham Borough Council,Conservation,14040161,150801,Lewis Advisory Services Limited,R1100-PLP004,Agency Staff,09/10/2015,1560.00,
http://statistics.data.gov.uk/id/local-authority-district/23UB,Cheltenham Borough Council,Conservation,14040482,150901,Lewis Advisory Services Limited,R1100-PLP004,Agency Staff,23/10/2015,1560.00,
http://statistics.data.gov.uk/id/local-authority-district/23UB,Cheltenham Borough Council,New Heating Installations,14040309,1119531,Liberty Gas Group,C1107-CAH009,Building Works,16/10/2015,4989.00,
http://statistics.data.gov.uk/id/local-authority-district/23UB,Cheltenham Borough Council,New Heating Installations,14040474,1120635,Liberty Gas Group,C1107-CAH009,Building Works,23/10/2015,21865.47,
http://statistics.data.gov.uk/id/local-authority-district/23UB,Cheltenham Borough Council,New Heating Installations,14040519,1123765,Liberty Gas Group,C1107-CAH009,Building Works,30/10/2015,3903.20,
http://statistics.data.gov.uk/id/local-authority-district/23UB,Cheltenham Borough Council,Car Parks - Off Street Operations,14040162,6128006595,Liberty Printers (AR & RFReddin) Limited,R4300-CPK001,Printing - Services,23/10/2015,550.00,
http://statistics.data.gov.uk/id/local-authority-district/23UB,Cheltenham Borough Council,Sustainability Measures,14040514,1235,Low Carbon Exchange (LCX Solar Limited),C1107-CAH032,Building Works,30/10/2015,128875.60,
http://statistics.data.gov.uk/id/local-authority-district/23UB,Cheltenham Borough Council,Parks & Gardens Operations,14040173,2623,Lushglen Exterior Furniture Renovation Services,R2075-OPS001,Grounds Maintenance - Contract,09/10/2015,682.50,
http://statistics.data.gov.uk/id/local-authority-district/23UB,Cheltenham Borough Council,Sports & Open Spaces Operations,14040200,137245,Matta Products (UK) Limited,R4003-OPS002,Tools & Equipment - R & M,09/10/2015,550.00,
http://statistics.data.gov.uk/id/local-authority-district/23UB,Cheltenham Borough Council,Community Welfare Grants,14040276,COM PRIDE 141015,Meantime,R6280-GBD001,Grants,16/10/2015,2000.00,
http://statistics.data.gov.uk/id/local-authority-district/23UB,Cheltenham Borough Council,Disabled Facility Grants,14040048,REDACTED,Mears Home Improvements (Client Account),C5000-CAP221,Grants,02/10/2015,7068.50,
http://statistics.data.gov.uk/id/local-authority-district/23UB,Cheltenham Borough Council,Disabled Facility Grants,14039897,REDACTED,Mears Home Improvements (Client Account),C5000-CAP221,Grants,02/10/2015,10270.06,
http://statistics.data.gov.uk/id/local-authority-district/23UB,Cheltenham Borough Council,Adaptations for the Disabled (CBC),14040269,REDACTED,Mears Home Improvements (Client Account),C1107-CAH028,Building Works,16/10/2015,5523.73,
http://statistics.data.gov.uk/id/local-authority-district/23UB,Cheltenham Borough Council,Car Park Income Collection,14040168,129407,Metric Group Limited,R4000-CPK002,Equipment Purchase,09/10/2015,5650.00,
http://statistics.data.gov.uk/id/local-authority-district/23UB,Cheltenham Borough Council,Repairs and Maintenance,14040480,23653,Morgan Lambert Limited,R2040-HRA100,R & M of Build Central Heating,23/10/2015,528.00,
http://statistics.data.gov.uk/id/local-authority-district/23UB,Cheltenham Borough Council,Neighbourhood works,14040167,1794,MPL Wrought Iron LLP,C1107-CAH005,Building Works,09/10/2015,3900.00,
http://statistics.data.gov.uk/id/local-authority-district/23UB,Cheltenham Borough Council,Planning Policy,14040144,CTG JCS 005,REDACTED,R4400-PLP001,Services - Professional Fees,09/10/2015,2349.66,
http://statistics.data.gov.uk/id/local-authority-district/23UB,Cheltenham Borough Council,"Cemetery, Crematorium and Churchyards",14040283,01.10.15,REDACTED,R4401-CCM001,Services - Fees and Charges,16/10/2015,780.60,
http://statistics.data.gov.uk/id/local-authority-district/23UB,Cheltenham Borough Council,Joint Core Strategy,14040062,92912,Nathaniel Lichfield & Partners,R1100-PLP101,Agency Staff,16/10/2015,9413.25,
http://statistics.data.gov.uk/id/local-authority-district/23UB,Cheltenham Borough Council,Public Art,14040199,NW_KGV_GC2412,Nicky Whittenham,R4411-PUB101,Consultancy Fees,09/10/2015,675.00,
http://statistics.data.gov.uk/id/local-authority-district/23UB,Cheltenham Borough Council,Waste & Recycling - Marketing,14040236,CBC007,Nicolas Francis,R4317-RYC007,Non Staff Advertising,16/10/2015,591.88,
http://statistics.data.gov.uk/id/local-authority-district/23UB,Cheltenham Borough Council,Project Management,14040172,14728,Ninian Solutions T/A Huddle,R4531-SUP036,IT - Purchase of Software,09/10/2015,12870.00,
http://statistics.data.gov.uk/id/local-authority-district/23UB,Cheltenham Borough Council,Internal Improvements,14040181,8899,NKS Contracts (Central) Limited,C1107-CAH004,Building Works,09/10/2015,43653.96,
http://statistics.data.gov.uk/id/local-authority-district/23UB,Cheltenham Borough Council,Internal Improvements,14040186,8960,NKS Contracts (Central) Limited,C1107-CAH004,Building Works,09/10/2015,12650.00,
http://statistics.data.gov.uk/id/local-authority-district/23UB,Cheltenham Borough Council,Community Welfare Grants,14040277,Health Grant,Oakley Neighbourhood Project,R6280-GBD001,Grants,16/10/2015,2052.16,
http://statistics.data.gov.uk/id/local-authority-district/23UB,Cheltenham Borough Council,CCTV,14040064,105755,OpenView Security Solutions Limited,R4003-CCT001,Tools & Equipment - R & M,09/10/2015,1419.17,
http://statistics.data.gov.uk/id/local-authority-district/23UB,Cheltenham Borough Council,Repairs and Maintenance,14040352,O0387846,Orbis Protect Limited,R2012-HRA100,R & M of Build Standby and Call Out,23/10/2015,1047.03,
http://statistics.data.gov.uk/id/local-authority-district/23UB,Cheltenham Borough Council,Car Parks - Off Street Operations,14039959,UK81724,Parkeon Limited,R4401-CPK001,Services - Fees and Charges,02/10/2015,2005.12,
http://statistics.data.gov.uk/id/local-authority-district/23UB,Cheltenham Borough Council,Car Parks - Off Street Operations,14040290,UK82041,Parkeon Limited,R4003-CPK001,Tools & Equipment - R & M,23/10/2015,2432.75,
http://statistics.data.gov.uk/id/local-authority-district/23UB,Cheltenham Borough Council,Car Parks - Off Street Operations,14039698,5896,Patrol,R4401-CPK001,Services - Fees and Charges,02/10/2015,684.00,
http://statistics.data.gov.uk/id/local-authority-district/23UB,Cheltenham Borough Council,Development Control - Applications,14039778,Q1170,Pell Frischmann Consulting Engineers Limited,R4400-DEV001,Services - Professional Fees,02/10/2015,18000.00,
http://statistics.data.gov.uk/id/local-authority-district/23UB,Cheltenham Borough Council,Development Control - Applications,14039778,Q1170,Pell Frischmann Consulting Engineers Limited,R4400-DEV001,Services - Professional Fees,02/10/2015,1000.00,
http://statistics.data.gov.uk/id/local-authority-district/23UB,Cheltenham Borough Council,Option Appraisal Voids,14040293,INV-3076,Pestguard UK Limited,C1107-CAH002,Building Works,16/10/2015,1751.00,
http://statistics.data.gov.uk/id/local-authority-district/23UB,Cheltenham Borough Council,Supervision and Management,14040164,si/38393,Pineapple Contracts,R4000-HRA110,Equipment Purchase,09/10/2015,3168.48,
http://statistics.data.gov.uk/id/local-authority-district/23UB,Cheltenham Borough Council,Cemetery & Crematorium Repairs & Maintenance,14039947,3233,PJ Combustion Solutions Limited,R2083-CCM111,R&M of Build - Routine,02/10/2015,649.00,
http://statistics.data.gov.uk/id/local-authority-district/23UB,Cheltenham Borough Council,Cemetery & Crematorium Repairs & Maintenance,14040441,3237,PJ Combustion Solutions Limited,R4003-CCM111,Tools & Equipment - R & M,23/10/2015,784.00,
http://statistics.data.gov.uk/id/local-authority-district/23UB,Cheltenham Borough Council,Cemetery & Crematorium Repairs & Maintenance,14040439,3243,PJ Combustion Solutions Limited,R4003-CCM111,Tools & Equipment - R & M,23/10/2015,890.00,
http://statistics.data.gov.uk/id/local-authority-district/23UB,Cheltenham Borough Council,Cemetery & Crematorium Repairs & Maintenance,14040440,3244,PJ Combustion Solutions Limited,R4003-CCM111,Tools & Equipment - R & M,23/10/2015,623.00,
http://statistics.data.gov.uk/id/local-authority-district/23UB,Cheltenham Borough Council,Development costs - Garage Sites 2a,14037739,PSD-Feas412,Powersave Direct Limited,C1107-CAH052,Building Works,16/10/2015,740.41,
http://statistics.data.gov.uk/id/local-authority-district/23UB,Cheltenham Borough Council,Development costs - Garage Sites 2a,14037740,PSD-Feas413,Powersave Direct Limited,C1107-CAH052,Building Works,16/10/2015,740.41,
http://statistics.data.gov.uk/id/local-authority-district/23UB,Cheltenham Borough Council,Development costs - Garage Sites 2a,14037742,PSD-Feas415,Powersave Direct Limited,C1107-CAH052,Building Works,16/10/2015,740.41,
http://statistics.data.gov.uk/id/local-authority-district/23UB,Cheltenham Borough Council,Development costs - Garage Sites 2a,14037741,PSD-Feas416,Powersave Direct Limited,C1107-CAH052,Building Works,16/10/2015,740.41,
http://statistics.data.gov.uk/id/local-authority-district/23UB,Cheltenham Borough Council,Adaptations for the Disabled (CBC),14039900,REDACTED,Premiere Healthcare Limited,C1107-CAH028,Building Works,02/10/2015,3807.00,
http://statistics.data.gov.uk/id/local-authority-district/23UB,Cheltenham Borough Council,Recreation Centre Repairs & Maintenance,14039950,CIP-00001032,Prospec Limited,R2085-REC111,R&M of Fix & Fit - Internal,02/10/2015,1185.35,
http://statistics.data.gov.uk/id/local-authority-district/23UB,Cheltenham Borough Council,Development costs - Garage Sites 2a,14039714,10594,Quattro Design Architects Limited,C1107-CAH052,Building Works,16/10/2015,1200.00,
http://statistics.data.gov.uk/id/local-authority-district/23UB,Cheltenham Borough Council,Development costs - Garage Sites 2a,14040332,10702,Quattro Design Architects Limited,C1107-CAH052,Building Works,23/10/2015,1031.00,
http://statistics.data.gov.uk/id/local-authority-district/23UB,Cheltenham Borough Council,Conservation,14040281,PLO146997,Redactive Publishing Limited,R1700-PLP004,Staff Advertising Costs,23/10/2015,600.00,
http://statistics.data.gov.uk/id/local-authority-district/23UB,Cheltenham Borough Council,Printing Services,14039786,100314303,Ricoh UK Limited,R4304-SUP022,Photocopier Operating Lease,02/10/2015,7626.14,
http://statistics.data.gov.uk/id/local-authority-district/23UB,Cheltenham Borough Council,Printing Services,14039918,100319301,Ricoh UK Limited,R4304-SUP022,Photocopier Operating Lease,02/10/2015,897.77,
http://statistics.data.gov.uk/id/local-authority-district/23UB,Cheltenham Borough Council,New Cremators,14040377,6333/3,Robert Potter and Partners LLP,C1005-CAP001,Surveyors Fees,23/10/2015,13070.85,
http://statistics.data.gov.uk/id/local-authority-district/23UB,Cheltenham Borough Council,New Cremators,14040196,RJP/CA/6333/3,Robert Potter and Partners LLP,C1005-CAP001,Surveyors Fees,09/10/2015,13070.85,
http://statistics.data.gov.uk/id/local-authority-district/23UB,Cheltenham Borough Council,Council Tax Collection,14039915,9050546436,Royal Mail,R4521-LTC001,Postages - franking machine,02/10/2015,1068.62,
http://statistics.data.gov.uk/id/local-authority-district/23UB,Cheltenham Borough Council,Council Tax Collection,14040150,9050588399,Royal Mail,R4521-LTC001,Postages - franking machine,09/10/2015,518.86,
http://statistics.data.gov.uk/id/local-authority-district/23UB,Cheltenham Borough Council,Registration of Electors,14040151,9050620167,Royal Mail,R4520-ELE001,Postages - stamps,09/10/2015,1217.99,
http://statistics.data.gov.uk/id/local-authority-district/23UB,Cheltenham Borough Council,Individual Electoral Registration,14040146,9050671844,Royal Mail,R4521-ELE010,Postages - franking machine,09/10/2015,595.78,
http://statistics.data.gov.uk/id/local-authority-district/23UB,Cheltenham Borough Council,Debtors,14040146,9050671844,Royal Mail,R4520-SUP012,Postages - stamps,09/10/2015,647.71,
http://statistics.data.gov.uk/id/local-authority-district/23UB,Cheltenham Borough Council,Development Control - Applications,14040059,15-225-Inv001,Ryder Landscape Consultants Limited,R4400-DEV001,Services - Professional Fees,09/10/2015,4376.25,
http://statistics.data.gov.uk/id/local-authority-district/23UB,Cheltenham Borough Council,Sandford Lido car park,14040351,LIDO PARKING SEP2015,Sandford Parks Lido (Trading) Limited,R5003-CPK103,TPP - Agency Fees,23/10/2015,28856.44,
http://statistics.data.gov.uk/id/local-authority-district/23UB,Cheltenham Borough Council,Sandford Lido car park,14040351,LIDO PARKING SEP2015,Sandford Parks Lido (Trading) Limited,R5003-CPK103,TPP - Agency Fees,23/10/2015,-1683.33,
http://statistics.data.gov.uk/id/local-authority-district/23UB,Cheltenham Borough Council,Sandford Lido car park,14040054,Sandford Lido Aug 15,Sandford Parks Lido (Trading) Limited,R5003-CPK103,TPP - Agency Fees,09/10/2015,27057.29,
http://statistics.data.gov.uk/id/local-authority-district/23UB,Cheltenham Borough Council,Sandford Lido car park,14040054,Sandford Lido Aug 15,Sandford Parks Lido (Trading) Limited,R5003-CPK103,TPP - Agency Fees,09/10/2015,-1683.33,
http://statistics.data.gov.uk/id/local-authority-district/23UB,Cheltenham Borough Council,Sandford Lido car park,14040055,Sandford Lido Jul 15,Sandford Parks Lido (Trading) Limited,R5003-CPK103,TPP - Agency Fees,09/10/2015,-1683.33,
http://statistics.data.gov.uk/id/local-authority-district/23UB,Cheltenham Borough Council,Sandford Lido car park,14040055,Sandford Lido Jul 15,Sandford Parks Lido (Trading) Limited,R5003-CPK103,TPP - Agency Fees,09/10/2015,32274.95,
http://statistics.data.gov.uk/id/local-authority-district/23UB,Cheltenham Borough Council,Repairs and Maintenance,14040497,662,SAS EPC,R2018-HRA100,R & M of Build Voids Energy Performance Certificates,30/10/2015,810.00,
http://statistics.data.gov.uk/id/local-authority-district/23UB,Cheltenham Borough Council,Car Park Income Collection,14039769,514696,Security Plus+ Limited,R4435-CPK002,Cash Collection Contract,02/10/2015,826.85,
http://statistics.data.gov.uk/id/local-authority-district/23UB,Cheltenham Borough Council,Recreation Centre Repairs & Maintenance,14039908,643094458,Severn Trent Water,R2402-REC111,Sewerage and Environmental Services,02/10/2015,1812.00,
http://statistics.data.gov.uk/id/local-authority-district/23UB,Cheltenham Borough Council,Soil Stacks,14039974,9854,Snape Contracting Limited (Snapecall),C1107-CAH024,Building Works,02/10/2015,25942.60,
http://statistics.data.gov.uk/id/local-authority-district/23UB,Cheltenham Borough Council,Soil Stacks,14040404,R610,Snape Contracting Limited (Snapecall),C1107-CAH024,Building Works,23/10/2015,558.51,
http://statistics.data.gov.uk/id/local-authority-district/23UB,Cheltenham Borough Council,Supervision and Management,14039933,671582196/0010,SSE - Southern Electric (Bill payments),R2100-HRA110,Electricity,02/10/2015,865.36,
http://statistics.data.gov.uk/id/local-authority-district/23UB,Cheltenham Borough Council,Household Waste,14039765,20750,Straight Plc,R4000-WST001,Equipment Purchase,02/10/2015,15477.00,
http://statistics.data.gov.uk/id/local-authority-district/23UB,Cheltenham Borough Council,Recycling Collection Schemes,14040176,21039,Straight Plc,R4000-RYC006,Equipment Purchase,16/10/2015,8045.52,
http://statistics.data.gov.uk/id/local-authority-district/23UB,Cheltenham Borough Council,Parks & Gardens Operations,14040318,24532,Streetmaster (South Wales) Limited,R2500-OPS001,Fixtures and Fittings - Purchases,23/10/2015,1533.00,
http://statistics.data.gov.uk/id/local-authority-district/23UB,Cheltenham Borough Council,Recreation Centre Repairs & Maintenance,14040020,4863,System Six Design & Build,R2077-REC111,R&M of Build - internal structures,02/10/2015,761.00,
http://statistics.data.gov.uk/id/local-authority-district/23UB,Cheltenham Borough Council,Sports & Open Spaces Repairs & Maintenance,14040414,4864,System Six Design & Build,R2004-OPS122,R & M of Build Programmed,23/10/2015,575.70,
http://statistics.data.gov.uk/id/local-authority-district/23UB,Cheltenham Borough Council,Public Conveniences,14040415,4869,System Six Design & Build,R2085-REG019,R&M of Fix & Fit - Internal,23/10/2015,782.20,
http://statistics.data.gov.uk/id/local-authority-district/23UB,Cheltenham Borough Council,Civic Events,14040417,4870,System Six Design & Build,R4401-DRM012,Services - Fees and Charges,23/10/2015,755.00,
http://statistics.data.gov.uk/id/local-authority-district/23UB,Cheltenham Borough Council,Cemetery & Crematorium Repairs & Maintenance,14040413,4872,System Six Design & Build,R2700-CCM111,Contract Cleaning,23/10/2015,600.00,
http://statistics.data.gov.uk/id/local-authority-district/23UB,Cheltenham Borough Council,Cheltenham Municipal Offices,14040411,4880,System Six Design & Build,R2078-ADB101,R&M of Build - external structures,23/10/2015,1989.00,
http://statistics.data.gov.uk/id/local-authority-district/23UB,Cheltenham Borough Council,Community Welfare Grants,14040275,Health Grant,Teens in Crisis (TIC+),R6280-GBD001,Grants,16/10/2015,1788.58,
http://statistics.data.gov.uk/id/local-authority-district/23UB,Cheltenham Borough Council,Supervision and Management,14039802,DEBT104274,Tewkesbury Borough Council,R4401-HRA110,Services - Fees and Charges,02/10/2015,6303.00,
http://statistics.data.gov.uk/id/local-authority-district/23UB,Cheltenham Borough Council,Non-dwelling Rents,14040485,DEBT104278,Tewkesbury Borough Council,R4426-HRA210,Legal Expenses,23/10/2015,536.01,
http://statistics.data.gov.uk/id/local-authority-district/23UB,Cheltenham Borough Council,Joint Core Strategy,14040085,DEBT104284,Tewkesbury Borough Council,R4400-PLP101,Services - Professional Fees,09/10/2015,10500.00,
http://statistics.data.gov.uk/id/local-authority-district/23UB,Cheltenham Borough Council,Cultural - Service Management and Support Services,14040201,70012482,The Cheltenham Trust,R5001-CSM001,TPP - Major External Contractors,09/10/2015,80636.00,
http://statistics.data.gov.uk/id/local-authority-district/23UB,Cheltenham Borough Council,General Fund Balance Sheet,14040206,8.50028E+11,The Midcounties Co-operative,B6170-BAL100,Short Term Revenue Creditors (incl RIA) - Other entities and individuals,23/10/2015,2650.00,
http://statistics.data.gov.uk/id/local-authority-district/23UB,Cheltenham Borough Council,Development Control - Applications,14039803,1071959,The Oyster Partnership Limited,R1100-DEV001,Agency Staff,02/10/2015,1092.08,
http://statistics.data.gov.uk/id/local-authority-district/23UB,Cheltenham Borough Council,Development Control - Applications,14040190,1072563,The Oyster Partnership Limited,R1100-DEV001,Agency Staff,09/10/2015,937.50,
http://statistics.data.gov.uk/id/local-authority-district/23UB,Cheltenham Borough Council,Development Control - Applications,14040187,1072882,The Oyster Partnership Limited,R1100-DEV001,Agency Staff,09/10/2015,1317.00,
http://statistics.data.gov.uk/id/local-authority-district/23UB,Cheltenham Borough Council,Development Control - Applications,14040313,1073483,The Oyster Partnership Limited,R1100-DEV001,Agency Staff,16/10/2015,1098.00,
http://statistics.data.gov.uk/id/local-authority-district/23UB,Cheltenham Borough Council,Development Control - Applications,14040522,1074129,The Oyster Partnership Limited,R1100-DEV001,Agency Staff,30/10/2015,750.00,
http://statistics.data.gov.uk/id/local-authority-district/23UB,Cheltenham Borough Council,Development Control - Applications,14040524,1074448,The Oyster Partnership Limited,R1100-DEV001,Agency Staff,30/10/2015,1424.63,
http://statistics.data.gov.uk/id/local-authority-district/23UB,Cheltenham Borough Council,Adaptations for the Disabled (CBC),14040470,14/00171/DMTLA,The Surveying Practice - Client Account,C1107-CAH028,Building Works,23/10/2015,12000.00,
http://statistics.data.gov.uk/id/local-authority-district/23UB,Cheltenham Borough Council,Disabled Facility Grants,14040049,15/00035/DMOOC,The Surveying Practice - Client Account,C5000-CAP221,Grants,02/10/2015,7179.92,
http://statistics.data.gov.uk/id/local-authority-district/23UB,Cheltenham Borough Council,Adaptations for the Disabled (CBC),14040056,REDACTED,The Surveying Practice - Client Account,C1107-CAH028,Building Works,02/10/2015,14400.00,
http://statistics.data.gov.uk/id/local-authority-district/23UB,Cheltenham Borough Council,Disabled Facility Grants,14040268,REDACTED,The Surveying Practice - Client Account,C5000-CAP221,Grants,16/10/2015,3142.01,
http://statistics.data.gov.uk/id/local-authority-district/23UB,Cheltenham Borough Council,Community Alarms,14040180,3IN/10268330,Tunstall Healthcare (UK) Limited,R4000-SPP002,Equipment Purchase,16/10/2015,5115.00,
http://statistics.data.gov.uk/id/local-authority-district/23UB,Cheltenham Borough Council,Sports & Open Spaces Operations,14040521,60007003,Ubico Limited,R5001-OPS002,TPP - Major External Contractors,30/10/2015,49405.83,
http://statistics.data.gov.uk/id/local-authority-district/23UB,Cheltenham Borough Council,Supervision and Management,14040521,60007003,Ubico Limited,R2071-HRA110,Open Spaces and Grassed Areas,30/10/2015,27755.67,
http://statistics.data.gov.uk/id/local-authority-district/23UB,Cheltenham Borough Council,Street Cleaning,14040521,60007003,Ubico Limited,R5001-STC001,TPP - Major External Contractors,30/10/2015,68776.67,
http://statistics.data.gov.uk/id/local-authority-district/23UB,Cheltenham Borough Council,Public Conveniences,14040521,60007003,Ubico Limited,R5001-REG019,TPP - Major External Contractors,30/10/2015,6239.17,
http://statistics.data.gov.uk/id/local-authority-district/23UB,Cheltenham Borough Council,Arle Road Nursery Operations,14040521,60007003,Ubico Limited,R5001-OPS101,TPP - Major External Contractors,30/10/2015,14624.17,
http://statistics.data.gov.uk/id/local-authority-district/23UB,Cheltenham Borough Council,Recycling Centres,14040521,60007003,Ubico Limited,R5001-RYC004,TPP - Major External Contractors,30/10/2015,43681.67,
http://statistics.data.gov.uk/id/local-authority-district/23UB,Cheltenham Borough Council,Parks & Gardens Operations,14040521,60007003,Ubico Limited,R5001-OPS001,TPP - Major External Contractors,30/10/2015,43088.33,
http://statistics.data.gov.uk/id/local-authority-district/23UB,Cheltenham Borough Council,Supervision and Management,14040521,60007003,Ubico Limited,R5001-HRA110,TPP - Major External Contractors,30/10/2015,7633.33,
http://statistics.data.gov.uk/id/local-authority-district/23UB,Cheltenham Borough Council,Highways Agency Verges & Trees,14040521,60007003,Ubico Limited,R5001-ESR001,TPP - Major External Contractors,30/10/2015,23720.83,
http://statistics.data.gov.uk/id/local-authority-district/23UB,Cheltenham Borough Council,Bring Sites,14040521,60007003,Ubico Limited,R5001-RYC005,TPP - Major External Contractors,30/10/2015,11303.33,
http://statistics.data.gov.uk/id/local-authority-district/23UB,Cheltenham Borough Council,Green Waste,14040521,60007003,Ubico Limited,R5001-RYC002,TPP - Major External Contractors,30/10/2015,25513.33,
http://statistics.data.gov.uk/id/local-authority-district/23UB,Cheltenham Borough Council,Trade Waste,14040521,60007003,Ubico Limited,R5001-TRW001,TPP - Major External Contractors,30/10/2015,43815.00,
http://statistics.data.gov.uk/id/local-authority-district/23UB,Cheltenham Borough Council,Household Waste,14040521,60007003,Ubico Limited,R5001-WST001,TPP - Major External Contractors,30/10/2015,100665.00,
http://statistics.data.gov.uk/id/local-authority-district/23UB,Cheltenham Borough Council,Recycling Collection Schemes,14040521,60007003,Ubico Limited,R5001-RYC006,TPP - Major External Contractors,30/10/2015,115078.33,
http://statistics.data.gov.uk/id/local-authority-district/23UB,Cheltenham Borough Council,GO ICT Centre of Excellence,14040183,12054391,Unit4 Business Software,R4539-SUP101,IT - Consultancy,09/10/2015,9100.00,
http://statistics.data.gov.uk/id/local-authority-district/23UB,Cheltenham Borough Council,GO ICT Centre of Excellence,14040193,12054416,Unit4 Business Software,R4539-SUP101,IT - Consultancy,09/10/2015,2200.00,
http://statistics.data.gov.uk/id/local-authority-district/23UB,Cheltenham Borough Council,Development Control - Applications,14039911,2.5E+13,Valuation Office Agency (VOA),R4400-DEV001,Services - Professional Fees,02/10/2015,8000.00,
http://statistics.data.gov.uk/id/local-authority-district/23UB,Cheltenham Borough Council,Development Control - Applications,14039910,2.5E+13,Valuation Office Agency (VOA),R4400-DEV001,Services - Professional Fees,02/10/2015,3050.00,
http://statistics.data.gov.uk/id/local-authority-district/23UB,Cheltenham Borough Council,Car Parks - Off Street Operations,14039723,CHL00226,Verrus (UK) Limited (Pay By Phone),R4401-CPK001,Services - Fees and Charges,02/10/2015,1998.74,
http://statistics.data.gov.uk/id/local-authority-district/23UB,Cheltenham Borough Council,Sandford Lido car park,14039791,CHL00228,Verrus (UK) Limited (Pay By Phone),R4401-CPK103,Services - Fees and Charges,02/10/2015,1895.33,
http://statistics.data.gov.uk/id/local-authority-district/23UB,Cheltenham Borough Council,Bulky Household Waste,14040317,20/15,Vision 21,R4401-WST004,Services - Fees and Charges,23/10/2015,3493.75,
http://statistics.data.gov.uk/id/local-authority-district/23UB,Cheltenham Borough Council,ICT,14040154,UK10/052015/5775,Vodafone Limited,R7001-SUP005,ICT,09/10/2015,999.00,
http://statistics.data.gov.uk/id/local-authority-district/23UB,Cheltenham Borough Council,ICT,14040153,UK10/072015/5141,Vodafone Limited,R7001-SUP005,ICT,09/10/2015,2512.58,
http://statistics.data.gov.uk/id/local-authority-district/23UB,Cheltenham Borough Council,Repairs and Maintenance,14040184,2256,West Midlands Services Limited,R2045-HRA100,R & M of Build Door Entry,09/10/2015,858.72,
http://statistics.data.gov.uk/id/local-authority-district/23UB,Cheltenham Borough Council,Repairs and Maintenance,14040319,2259,West Midlands Services Limited,R2045-HRA100,R & M of Build Door Entry,16/10/2015,1144.96,
http://statistics.data.gov.uk/id/local-authority-district/23UB,Cheltenham Borough Council,Repairs and Maintenance,14040320,2260,West Midlands Services Limited,R2045-HRA100,R & M of Build Door Entry,23/10/2015,3148.64,
http://statistics.data.gov.uk/id/local-authority-district/23UB,Cheltenham Borough Council,Community Welfare Grants,14040513,HEALTH GRANT 261015,Youth and Community Services Limited,R6280-GBD001,Grants,30/10/2015,4520.00,
http://statistics.data.gov.uk/id/local-authority-district/23UB,Cheltenham Borough Council,Car Parks - Off Street Operations,14039817,INV-0026,BIBBY FACTORS LEICESTER LTD,R4401-CPK001,Services - Fees and Charges,09/10/2015,868.00,
http://statistics.data.gov.uk/id/local-authority-district/23UB,Cheltenham Borough Council,Rent Control,14040463,rent refund -REDACTED,REDACTED,R9910-HRA900,Refund of Overpiad Rent,23/10/2015,1063.08,
http://statistics.data.gov.uk/id/local-authority-district/23UB,Cheltenham Borough Council,General Fund Balance Sheet,14040272,Payment Sent in Error (REDACTED),Lee Baron Limited,B6170-BAL100,Short Term Revenue Creditors (incl RIA) - Other entities and individuals,16/10/2015,3792.50,
http://statistics.data.gov.uk/id/local-authority-district/23UB,Cheltenham Borough Council,General Fund Balance Sheet,14040032,250915,Mayors Charity,B6170-BAL100,Short Term Revenue Creditors (incl RIA) - Other entities and individuals,02/10/2015,769.05,
http://statistics.data.gov.uk/id/local-authority-district/23UB,Cheltenham Borough Council,Material Bulking Plant,14040238,43622,MIDDLETON ENGINEERING LTD,C1005-CAP302,Surveyors Fees,16/10/2015,1350.00,
http://statistics.data.gov.uk/id/local-authority-district/23UB,Cheltenham Borough Council,Homelessness,14040468,move uk net,MOVE UK NET,R6280-HOM001,Grants,30/10/2015,600.00,
http://statistics.data.gov.uk/id/local-authority-district/23UB,Cheltenham Borough Council,Development costs - Garage Sites 2b,14040058,REDACTED,REDACTED,C1107-CAH054,Building Works,02/10/2015,1000.00,
http://statistics.data.gov.uk/id/local-authority-district/23UB,Cheltenham Borough Council,Rent Control,14040466,rent refund -REDACTED,REDACTED,R9910-HRA900,Refund of Overpiad Rent,23/10/2015,1033.59,
http://statistics.data.gov.uk/id/local-authority-district/23UB,Cheltenham Borough Council,Joint Core Strategy,14040156,72832 CHELT/GLOS/TEWKS JOINT CORE,MR SIMON BIRD QC,R4400-PLP101,Services - Professional Fees,09/10/2015,54000.00,
http://statistics.data.gov.uk/id/local-authority-district/23UB,Cheltenham Borough Council,Rent Control,14040226,0414463 REDACTED,MRS C F HAWKINS,R9910-HRA900,Refund of Overpiad Rent,09/10/2015,1574.28,
http://statistics.data.gov.uk/id/local-authority-district/23UB,Cheltenham Borough Council,Rent Control,14040227,042119 00 4 REDACTED,REDACTED,R9910-HRA900,Refund of Overpiad Rent,09/10/2015,544.56,
http://statistics.data.gov.uk/id/local-authority-district/23UB,Cheltenham Borough Council,Community Welfare Grants,14040512,COM PRIDE,ST PHILIP & ST JAMES PCC,R6280-GBD001,Grants,30/10/2015,3500.00,
http://statistics.data.gov.uk/id/local-authority-district/23UB,Cheltenham Borough Council,Rent Control,14040467,rent refund REDACTED,REDACTED,R9910-HRA900,Refund of Overpiad Rent,23/10/2015,2312.36,
http://statistics.data.gov.uk/id/local-authority-district/23UB,Cheltenham Borough Council,Pensions Backfunding,10016646,Direct Debit payment,GLOUCESTERSHIRE COUNTY COUNCIL - LGPS,SUP038-R1901,Contribution to Pension Fund,01/10/2015,211666.00,
http://statistics.data.gov.uk/id/local-authority-district/23UB,Cheltenham Borough Council,"Cemetery, Crematorium and Churchyards",10016646,Direct Debit payment,SEVERN TRENT WATER,CCM001-R2401,Water Services - Metered,01/10/2015,1697.68,
http://statistics.data.gov.uk/id/local-authority-district/23UB,Cheltenham Borough Council,"Cemetery, Crematorium and Churchyards",10016646,Direct Debit payment,SEVERN TRENT WATER,CCM001-R2402,Sewerage and Environmental Services,01/10/2015,1408.60,
http://statistics.data.gov.uk/id/local-authority-district/23UB,Cheltenham Borough Council,Telephones,10016646,Direct Debit payment,VIRGIN MEDIA,SUP006-R4515,Comms - Telephone service / rental charges,01/10/2015,2002.54,
http://statistics.data.gov.uk/id/local-authority-district/23UB,Cheltenham Borough Council,Telephones,10016646,Direct Debit payment,VIRGIN MEDIA,SUP006-R4515,Comms - Telephone service / rental charges,01/10/2015,2194.79,
http://statistics.data.gov.uk/id/local-authority-district/23UB,Cheltenham Borough Council,Supervision and Management,10016651,Direct Debit payment,GILBERT WARD COURT,HRA110-R2101,Gas,09/09/2015,859.13,
http://statistics.data.gov.uk/id/local-authority-district/23UB,Cheltenham Borough Council,Supervision and Management,10016651,Direct Debit payment,WALLACE HSE,HRA110-R2101,Gas,09/09/2015,1051.07,
http://statistics.data.gov.uk/id/local-authority-district/23UB,Cheltenham Borough Council,Cheltenham Municipal Offices,10016651,Direct Debit payment,MUNICIPAL OFFICES,ADB101-R2101,Gas,09/09/2015,1187.18,
http://statistics.data.gov.uk/id/local-authority-district/23UB,Cheltenham Borough Council,Town Hall Repairs & Maintenance,10016651,Direct Debit payment,TOWN HALL,CUL112-R2101,Gas,09/09/2015,1935.67,
http://statistics.data.gov.uk/id/local-authority-district/23UB,Cheltenham Borough Council,Recreation Centre Repairs & Maintenance,10016651,Direct Debit payment, REC CENTRE,REC111-R2101,Gas,09/09/2015,19304.59,
http://statistics.data.gov.uk/id/local-authority-district/23UB,Cheltenham Borough Council,Car Parks - Off Street Operations,10016654,Direct Debit payment,SEVERN TRENT WATER - NORTHFIELD TCE CP,CPK001-R2402,Sewerage and Environmental Services,24/09/2015,730.77,
http://statistics.data.gov.uk/id/local-authority-district/23UB,Cheltenham Borough Council,Pittville Pump Room Operations,10016654,Direct Debit payment,SEVERN TRENT WATER - PITTVILLE PUMP ROOM,CUL103-R2402,Sewerage and Environmental Services,24/09/2015,1222.47,
http://statistics.data.gov.uk/id/local-authority-district/23UB,Cheltenham Borough Council,Town Hall Repairs & Maintenance,10016654,Direct Debit payment,SEVERN TRENT WATER - TH,CUL112-R2402,Sewerage and Environmental Services,24/09/2015,1805.94,
http://statistics.data.gov.uk/id/local-authority-district/23UB,Cheltenham Borough Council,Treasury Management,10016692,Direct Debit payment,CARDNET SERV CHG  1602,COR006-R4428,Services - credit card charges,14/10/2015,762.09,
http://statistics.data.gov.uk/id/local-authority-district/23UB,Cheltenham Borough Council,Treasury Management,10016692,Direct Debit payment,CARDNET SERV CHG 1866,COR006-R4428,Services - credit card charges,14/10/2015,1492.38,
http://statistics.data.gov.uk/id/local-authority-district/23UB,Cheltenham Borough Council,Treasury Management,10016692,Direct Debit payment,CARDNET SERV CHG 738,COR006-R4428,Services - credit card charges,14/10/2015,2136.24,
http://statistics.data.gov.uk/id/local-authority-district/23UB,Cheltenham Borough Council,Supervision and Management,10016693,Direct Debit payment,SOUTHERN ELECTRIC,HRA110-R2100,Electricity,12/10/2015,2022.68,
http://statistics.data.gov.uk/id/local-authority-district/23UB,Cheltenham Borough Council,Ubico Intercompany Account,10016693,Direct Debit payment,BRITISH TELECOM,HLD102-R4515,Comms - Telephone service / rental charges,12/10/2015,536.04,queried - Readman FOI - s/b on R4514 code
http://statistics.data.gov.uk/id/local-authority-district/23UB,Cheltenham Borough Council,Art Gallery & Museum Operations,10016693,Direct Debit payment,BRITISH TELECOM,CUL107-R4515,Comms - Telephone service / rental charges,12/10/2015,555.24,queried - Readman FOI - s/b on R4514 code
http://statistics.data.gov.uk/id/local-authority-district/23UB,Cheltenham Borough Council,Supervision and Management,10016693,Direct Debit payment,BRITISH TELECOM,HRA110-R4515,Comms - Telephone service / rental charges,12/10/2015,2594.83,queried - Readman FOI - s/b on R4514 code
http://statistics.data.gov.uk/id/local-authority-district/23UB,Cheltenham Borough Council,Car Parks - Off Street Operations,10016693,Direct Debit payment,BRITISH TELECOM,CPK001-R4515,Comms - Telephone service / rental charges,12/10/2015,3113.56,queried - Readman FOI - s/b on R4514 code
Purchase Card Data,,,,,,,,,
http://statistics.data.gov.uk/id/local-authority-district/23UB,Cheltenham Borough Council,Council Tax Collection,10017043,Procurement Cards,HM Courts Service,LTC001-R4420,Legal Expenses And Court Costs,01/10/2015,795.00,
,,,,,"Note: Yellow highlighted cells above, have been amended to reflect correction of incorrect code / description included in original published Transparency report",,,,
